bitfinex-derivatives/quotes_BTCF0:USTF0_20241013
["timestamp","ask_amount","ask_price","bid_price","bid_amount"]
[1728854968762,0.001,62907.0,62906.0,0.091495]
[1728854971468,0.001,62907.0,62906.0,0.452295]
[1728854972566,0.001,62907.0,62906.0,0.51528239]
[1728854976771,0.001,62907.0,62906.0,0.452295]
[1728854983571,0.11944563,62907.0,62906.0,0.452295]
[1728854984966,0.1748588,62907.0,62906.0,0.091495]
[1728854985167,0.14414764,62907.0,62906.0,0.452295]
[1728854985373,0.26259327,62907.0,62906.0,0.452295]
[1728854986470,0.26259327,62907.0,62906.0,0.091495]
[1728854986774,0.26259327,62907.0,62906.0,0.452295]
[1728854987371,0.34208727,62907.0,62906.0,0.452295]
[1728854988475,0.19893963,62907.0,62906.0,0.452295]
[1728854989265,0.19893963,62907.0,62906.0,0.091495]
[1728854989469,0.19893963,62907.0,62906.0,0.452295]
[1728854991772,0.080494,62907.0,62906.0,0.452295]
[1728854993165,0.080494,62907.0,62906.0,0.091495]
[1728854993369,0.080494,62907.0,62906.0,0.452295]
[1728854996174,0.080494,62907.0,62906.0,0.091495]
[1728854996374,0.080494,62907.0,62906.0,0.452295]
[1728854997676,0.080494,62907.0,62906.0,0.091495]
[1728855000372,0.080494,62907.0,62906.0,0.452295]
[1728855005479,0.080494,62907.0,62906.0,0.3728]
[1728855006381,0.080494,62907.0,62906.0,0.012]
[1728855006580,0.080494,62907.0,62906.0,0.3728]
[1728855006781,0.20774272,62907.0,62906.0,0.3728]
[1728855007083,0.27738933,62907.0,62906.0,0.3728]
[1728855013691,0.080494,62907.0,62906.0,0.3728]
[1728855021197,0.080494,62907.0,62906.0,0.452295]
[1728855021791,0.20774272,62907.0,62906.0,0.452295]
[1728855021992,0.27738933,62907.0,62906.0,0.452295]
[1728855024096,0.15014061,62907.0,62906.0,0.452295]
[1728855025387,0.080494,62907.0,62906.0,0.452295]
[1728855025590,0.15014015,62907.0,62906.0,0.452295]
[1728855027196,0.20774272,62907.0,62906.0,0.452295]
[1728855027400,0.27738887,62907.0,62906.0,0.452295]
[1728855028095,0.15014015,62907.0,62906.0,0.452295]
[1728855028296,0.19789487,62907.0,62906.0,0.452295]
[1728855028498,0.07064615,62907.0,62906.0,0.452295]
[1728855028898,0.001,62907.0,62906.0,0.51528239]
[1728855031299,0.080494,62907.0,62906.0,0.51528239]
[1728855036609,0.080494,62907.0,62906.0,0.452295]
[1728855036901,0.15013798,62907.0,62906.0,0.452295]
[1728855038199,0.03171077,62907.0,62906.0,0.452295]
[1728855038901,0.26259892,62907.0,62906.0,0.452295]
[1728855039097,0.07064398,62907.0,62906.0,0.452295]
[1728855040103,0.12824523,62907.0,62906.0,0.452295]
[1728855040306,0.19788921,62907.0,62906.0,0.452295]
[1728855041205,0.1978863,62907.0,62906.0,0.452295]
[1728855042998,0.07064107,62907.0,62906.0,0.452295]
[1728855043609,0.07064107,62907.0,62906.0,0.813095]
[1728855043797,0.001,62907.0,62906.0,0.813095]
[1728855048109,0.008,62922.0,62909.0,0.07949]
[1728855048311,0.3645,62931.0,62922.0,0.079475]
[1728855048506,0.3608,62938.0,62937.0,0.079456]
[1728855048707,0.550255,62938.0,62937.0,0.079456]
[1728855049015,0.079457,62937.0,62932.0,0.0111]
[1728855049211,0.11,62933.0,62931.0,0.079463]
[1728855051109,0.189462,62933.0,62931.0,0.079463]
[1728855051513,0.079462,62933.0,62931.0,0.079463]
[1728855051810,0.079462,62933.0,62931.0,0.080463]
[1728855051811,0.06962304,62932.0,62931.0,0.080463]
[1728855052402,0.12680826,62932.0,62931.0,0.080463]
[1728855052604,0.2758933,62932.0,62931.0,0.080463]
[1728855053507,0.14908504,62932.0,62931.0,0.081463]
[1728855054413,0.11016354,62932.0,62931.0,0.081463]
[1728855054909,0.11616354,62932.0,62931.0,0.081463]
[1728855055507,0.11616351,62932.0,62931.0,0.081463]
[1728855055813,0.11616351,62932.0,62931.0,0.080463]
[1728855056004,0.12116351,62932.0,62931.0,0.081463]
[1728855056910,0.04170151,62932.0,62931.0,0.081463]
[1728855058811,0.011,62932.0,62931.0,0.081463]
[1728855060420,0.011,62932.0,62931.0,0.002]
[1728855060421,0.090462,62932.0,62931.0,0.002]
[1728855073923,0.12116375,62932.0,62931.0,0.002]
[1728855076423,0.16008551,62932.0,62931.0,0.002]
[1728855078013,0.19158551,62932.0,62931.0,0.002]
[1728855078218,0.1915855,62932.0,62931.0,0.002]
[1728855079126,0.24037129,62932.0,62931.0,0.002]
[1728855081615,0.26508656,62932.0,62931.0,0.002]
[1728855081934,0.26508656,62932.0,62931.0,0.081464]
[1728855082223,0.121962,62932.0,62931.0,0.081464]
[1728855082819,0.121962,62932.0,62931.0,0.002]
[1728855083422,0.121962,62932.0,62931.0,0.0493309]
[1728855083824,0.121962,62932.0,62931.0,0.1287949]
[1728855090317,0.121962,62932.0,62931.0,0.0493309]
[1728855090532,0.482762,62932.0,62931.0,0.002]
[1728855091629,0.592762,62932.0,62931.0,0.002]
[1728855091929,0.07947,62926.0,62925.0,0.0111]
[1728855092131,0.079471,62925.0,62924.0,0.00238304]
[1728855092435,0.112071,62925.0,62924.0,0.00238304]
[1728855092623,0.112071,62925.0,62918.0,0.03169203]
[1728855092624,0.079479,62919.0,62918.0,0.03169203]
[1728855092932,0.440279,62919.0,62918.0,0.02799203]
[1728855093126,0.079481,62917.0,62916.0,0.15735137]
[1728855093519,0.079481,62917.0,62916.0,0.11]
[1728855093832,0.079481,62917.0,62916.0,0.13839859]
[1728855094330,0.079481,62917.0,62916.0,0.14339859]
[1728855095033,0.079481,62917.0,62916.0,0.115]
[1728855095634,0.079481,62917.0,62916.0,0.119]
[1728855098627,0.079481,62917.0,62916.0,0.009]
[1728855102031,0.07948,62919.0,62917.0,0.07948]
[1728855102227,0.07948,62918.0,62917.0,0.07948]
[1728855102423,0.11,62921.0,62916.0,0.009]
[1728855102629,0.079481,62917.0,62916.0,0.009]
[1728855103029,0.079481,62917.0,62916.0,0.084482]
[1728855103930,0.079481,62917.0,62916.0,0.079482]
[1728855104339,0.079481,62917.0,62916.0,0.084482]
[1728855105641,0.079481,62917.0,62916.0,0.089482]
[1728855108635,0.079481,62917.0,62916.0,0.01]
[1728855115045,0.11,62918.0,62916.0,0.01]
[1728855115046,0.079481,62918.0,62916.0,0.01]
[1728855115246,0.079478,62920.0,62918.0,0.079479]
[1728855115448,0.07948,62919.0,62918.0,0.079479]
[1728855117139,0.07948,62919.0,62918.0,0.081479]
[1728855118049,0.07948,62919.0,62918.0,0.084479]
[1728855119548,0.0037,62929.0,62928.0,0.079467]
[1728855119847,0.3608,62933.0,62928.0,0.4708]
[1728855120044,0.3608,62933.0,62929.0,0.04728478]
[1728855120444,0.3608,62933.0,62928.0,0.47292]
[1728855120445,0.3608,62933.0,62930.0,0.04728478]
[1728855120949,0.3608,62933.0,62932.0,0.079462]
[1728855122046,0.189458,62936.0,62934.0,0.07946]
[1728855123656,0.189458,62936.0,62935.0,0.079458]
[1728855124159,0.195458,62936.0,62935.0,0.079458]
[1728855124756,0.202458,62936.0,62935.0,0.079458]
[1728855124955,0.013,62936.0,62935.0,0.079458]
[1728855125341,0.013,62936.0,62935.0,0.080458]
[1728855126252,0.013,62936.0,62935.0,0.441258]
[1728855126445,0.013,62936.0,62935.0,0.442258]
[1728855126847,0.013,62936.0,62935.0,0.48954278]
[1728855127047,0.013,62936.0,62935.0,0.442258]
[1728855127248,0.013,62936.0,62935.0,0.441258]
[1728855127249,0.007,62936.0,62935.0,0.441258]
[1728855127448,0.006,62936.0,62935.0,0.442258]
[1728855127667,0.013,62936.0,62935.0,0.442258]
[1728855131158,0.006,62936.0,62935.0,1.517938]
[1728855131360,0.007,62936.0,62935.0,1.517938]
[1728855131958,0.0037,62945.0,62941.0,0.079451]
[1728855132260,0.00238308,62956.0,62955.0,0.079433]
[1728855132560,0.079427,62961.0,62955.0,0.5808]
[1728855132759,0.079427,62961.0,62960.0,0.189427]
[1728855133057,0.079421,62965.0,62964.0,0.079422]
[1728855133360,0.0648,62971.0,62961.0,0.3608]
[1728855133361,0.079424,62962.0,62961.0,0.3608]
[1728855134663,0.079424,62962.0,62961.0,0.4708]
[1728855135168,0.07943,62958.0,62955.0,0.448233]
[1728855135463,0.07943,62958.0,62957.0,0.189431]
[1728855135651,0.07943,62958.0,62955.0,0.3658]
[1728855135652,0.079421,62965.0,62963.0,0.079423]
[1728855135852,0.079421,62965.0,62964.0,0.11]
[1728855136053,0.06718297,62971.0,62964.0,0.11]
[1728855136251,0.28986,62995.0,62983.0,0.7968]
[1728855136462,0.3608,63026.0,62995.0,0.079382]
[1728855136762,0.3608,63031.0,62994.0,0.4708]
[1728855136763,0.440139,63031.0,63022.0,0.3608]
[1728855136961,0.3608,63031.0,63022.0,0.3608]
[1728855137155,0.440138,63031.0,63022.0,0.3608]
[1728855137356,0.3608,63040.0,63022.0,0.3608]
[1728855137556,0.3608,63040.0,63030.0,0.3608]
[1728855137757,0.3608,63040.0,63034.0,0.079333]
[1728855137964,0.3608,63040.0,63033.0,0.079334]
[1728855138356,0.11,63036.0,63030.0,0.3608]
[1728855138969,0.11,63036.0,63030.0,0.440138]
[1728855139264,0.4708,63058.0,63033.0,0.3608]
[1728855139461,0.079307,63056.0,63048.0,0.3608]
[1728855139767,0.4708,63058.0,63033.0,0.3608]
[1728855139768,0.07933,63037.0,63033.0,0.3608]
[1728855139963,0.3608,63049.0,63033.0,0.3608]
[1728855140171,0.004,63040.0,63033.0,0.3618]
[1728855140466,0.079333,63035.0,63033.0,0.3618]
[1728855140670,0.079334,63034.0,63033.0,0.3608]
[1728855140872,0.239334,63034.0,63033.0,0.3608]
[1728855141472,0.239334,63034.0,63033.0,0.3618]
[1728855141674,0.239334,63034.0,63033.0,0.3628]
[1728855141977,0.243334,63034.0,63033.0,0.3628]
[1728855142279,0.243334,63034.0,63033.0,0.23575759]
[1728855143663,0.403334,63034.0,63033.0,0.002]
[1728855143870,0.243334,63034.0,63033.0,0.002]
[1728855145168,0.07934,63029.0,63016.0,0.008]
[1728855145370,0.079356,63016.0,63012.0,0.079361]
[1728855145679,0.07936,63013.0,63010.0,0.3608]
[1728855145970,0.16,63017.0,63010.0,0.3608]
[1728855145971,0.079363,63011.0,63010.0,0.3608]
[1728855146669,0.16,63012.0,63007.0,0.00238074]
[1728855146670,0.079366,63008.0,63007.0,0.00238074]
[1728855147261,0.079366,63008.0,63007.0,0.00146411]
[1728855147465,0.07937,63005.0,62998.0,0.079378]
[1728855147672,0.16,63008.0,62998.0,0.079378]
[1728855147875,0.239366,63008.0,63007.0,0.003]
[1728855148076,0.239366,63008.0,63007.0,0.006]
[1728855148463,0.16,63010.0,63007.0,0.006]
[1728855148871,0.079366,63008.0,63007.0,0.006]
[1728855149370,0.079366,63008.0,63007.0,0.003]
[1728855150074,0.079375,63001.0,62998.0,0.025]
[1728855150264,0.16,63010.0,63007.0,0.003]
[1728855150470,0.079366,63008.0,63007.0,0.003]
[1728855150673,0.079366,63008.0,62991.0,0.008]
[1728855150674,0.47612,63009.0,62991.0,0.008]
[1728855150871,0.079388,62991.0,62990.0,0.3608]
[1728855151075,0.16,62999.0,62990.0,0.3608]
[1728855151269,0.079388,62991.0,62990.0,0.3608]
[1728855151470,0.3608,63000.0,62990.0,0.3608]
[1728855151684,0.079379,62998.0,62994.0,0.079384]
[1728855151975,0.079381,62997.0,62994.0,0.079384]
[1728855152276,0.079378,62999.0,62998.0,0.012]
[1728855152981,0.3608,63000.0,62991.0,0.006]
[1728855153183,0.079384,62995.0,62994.0,0.003]
[1728855153878,0.079384,62995.0,62990.0,0.442269]
[1728855154081,0.079384,62995.0,62991.0,0.085387]
[1728855154279,0.003,62999.0,62993.0,0.5208]
[1728855154580,0.003,62999.0,62998.0,0.16]
[1728855155577,0.239362,63012.0,62999.0,0.079377]
[1728855155785,0.239362,63012.0,63000.0,0.079375]
[1728855155981,0.07937,63005.0,63002.0,0.079374]
[1728855156276,0.07937,63005.0,62998.0,0.16]
[1728855156277,0.16,63012.0,62998.0,0.16]
[1728855156478,0.16,63012.0,63002.0,0.079373]
[1728855156669,0.00238129,63013.0,63002.0,0.079373]
[1728855156670,0.079371,63005.0,63002.0,0.079373]
[1728855157180,0.080371,63005.0,63002.0,0.079373]
[1728855158084,0.001,63005.0,63002.0,0.005]
[1728855158277,0.079373,63003.0,63002.0,0.005]
[1728855159483,0.079373,63003.0,63002.0,0.01]
[1728855159786,0.079373,63003.0,63002.0,0.007]
[1728855160179,0.079373,63003.0,63002.0,0.004]
[1728855160386,0.079373,63003.0,63002.0,0.006]
[1728855161088,0.079373,63003.0,63002.0,0.003]
[1728855161473,0.079373,63003.0,63002.0,0.004]
[1728855161874,0.079373,63003.0,63002.0,0.003]
[1728855162788,0.00238129,63013.0,63008.0,0.079366]
[1728855162992,0.079364,63010.0,63002.0,0.163]
[1728855163196,0.079364,63010.0,63009.0,0.3608]
[1728855164179,0.08174129,63013.0,63009.0,0.3608]
[1728855164379,0.08174129,63013.0,63009.0,0.3628]
[1728855164380,0.079363,63011.0,63009.0,0.3628]
[1728855164883,0.16,63012.0,63009.0,0.442165]
[1728855164884,0.239362,63012.0,63009.0,0.442165]
[1728855165688,0.079362,63012.0,63009.0,0.442165]
[1728855165884,0.079362,63012.0,63009.0,0.444165]
[1728855166085,0.079362,63012.0,63009.0,0.442165]
[1728855166282,0.00238129,63013.0,63009.0,0.3648]
[1728855166283,0.079363,63011.0,63009.0,0.3648]
[1728855166486,0.00238129,63013.0,63009.0,0.442165]
[1728855166689,0.079362,63012.0,63009.0,0.444165]
[1728855166886,0.079362,63012.0,63009.0,0.3648]
[1728855167086,0.079363,63011.0,63009.0,0.3648]
[1728855167992,0.079363,63011.0,63009.0,0.3628]
[1728855168497,0.079363,63011.0,63009.0,0.3648]
[1728855168989,0.079363,63011.0,63009.0,0.3628]
[1728855169189,0.079363,63011.0,63009.0,0.3638]
[1728855169892,0.079363,63011.0,63009.0,0.3648]
[1728855170581,0.079363,63011.0,63009.0,0.3628]
[1728855170783,0.00238129,63013.0,63009.0,0.3638]
[1728855170992,0.00238129,63013.0,63012.0,0.079361]
[1728855171290,0.00238129,63013.0,63009.0,0.3648]
[1728855171489,0.00238129,63013.0,63012.0,0.079361]
[1728855172288,0.00238129,63013.0,63009.0,0.3628]
[1728855172289,0.079361,63012.0,63009.0,0.3628]
[1728855172489,0.079361,63012.0,63009.0,0.442165]
[1728855172885,0.079361,63012.0,63009.0,0.441165]
[1728855173489,0.079361,63012.0,63009.0,0.443165]
[1728855174097,0.079361,63012.0,63009.0,0.441165]
[1728855174292,0.079361,63012.0,63010.0,0.04728478]
[1728855174593,0.00238129,63013.0,63009.0,0.41116478]
[1728855174896,0.00238129,63013.0,63011.0,0.079363]
[1728855175091,0.08174129,63013.0,63011.0,0.079363]
[1728855175291,0.00238129,63013.0,63011.0,0.079363]
[1728855175994,0.00238129,63013.0,63011.0,0.12664778]
[1728855176596,0.08174129,63013.0,63011.0,0.079363]
[1728855177002,0.08174129,63013.0,63011.0,0.080363]
[1728855177496,0.079363,63011.0,63010.0,0.04928478]
[1728855177797,0.079363,63011.0,63010.0,0.002]
[1728855178095,0.079364,63010.0,63008.0,0.3608]
[1728855178500,0.079364,63010.0,63008.0,0.40808478]
[1728855179000,0.079364,63010.0,63008.0,0.3608]
[1728855179398,0.00238129,63013.0,63008.0,0.3608]
[1728855179594,0.00238129,63013.0,63008.0,0.3638]
[1728855180096,0.00238129,63013.0,63010.0,0.001]
[1728855180296,0.00238129,63013.0,63012.0,0.079361]
[1728855180605,0.00238129,63013.0,63012.0,0.239361]
[1728855180792,0.00238129,63013.0,63012.0,0.28664578]
[1728855181094,0.079349,63022.0,63017.0,0.079354]
[1728855181297,0.079349,63022.0,63018.0,0.079354]
[1728855181597,0.079349,63022.0,63015.0,0.3608]
[1728855181598,0.1917,63025.0,63019.0,0.079352]
[1728855181789,0.079348,63023.0,63019.0,0.079352]
[1728855182194,0.079349,63022.0,63015.0,0.440157]
[1728855182393,0.079348,63023.0,63016.0,0.079356]
[1728855182594,0.0314,63024.0,63015.0,0.3608]
[1728855182903,0.0354,63024.0,63019.0,0.001]
[1728855183107,0.0354,63024.0,63023.0,0.079348]
[1728855183291,0.004,63024.0,63023.0,0.079348]
[1728855183890,0.079343,63027.0,63023.0,0.079348]
[1728855184090,0.440142,63028.0,63023.0,0.079348]
[1728855184496,0.440142,63028.0,63022.0,0.3608]
[1728855184497,0.3608,63028.0,63022.0,0.3608]
[1728855184704,0.005,63024.0,63023.0,0.001]
[1728855186207,0.03081398,63024.0,63023.0,0.001]
[1728855186803,0.03581398,63024.0,63023.0,0.001]
[1728855187003,0.03981398,63024.0,63023.0,0.081348]
[1728855189096,0.009,63024.0,63023.0,0.081348]
[1728855189296,0.009,63024.0,63023.0,0.241348]
[1728855189705,0.009,63024.0,63023.0,0.081348]
[1728855190500,0.3608,63041.0,63023.0,1.078]
[1728855190697,0.3608,63041.0,63035.0,0.5208]
[1728855190905,0.03144947,63040.0,63039.0,0.079327]
[1728855191406,0.079329,63038.0,63035.0,0.3608]
[1728855191594,0.079329,63038.0,63036.0,0.07933]
[1728855192694,0.079327,63040.0,63037.0,0.07933]
[1728855194112,0.0324,63045.0,63036.0,0.014]
[1728855194298,0.0324,63045.0,63039.0,0.079327]
[1728855194501,0.079323,63043.0,63039.0,0.079326]
[1728855194698,0.079324,63042.0,63039.0,0.079026]
[1728855194899,0.3608,63047.0,63037.0,0.009]
[1728855195102,0.079322,63044.0,63040.0,0.079325]
[1728855195598,0.079322,63044.0,63042.0,0.3608]
[1728855195795,0.079319,63046.0,63042.0,0.3608]
[1728855196000,0.079321,63045.0,63042.0,0.3608]
[1728855197007,0.1905,63053.0,63042.0,0.3628]
[1728855197008,0.079322,63044.0,63042.0,0.3628]
[1728855197400,0.079322,63044.0,63042.0,0.3648]
[1728855197709,0.079322,63044.0,63042.0,0.3628]
[1728855197908,0.079312,63051.0,63042.0,0.3628]
[1728855198105,0.079319,63046.0,63042.0,0.3628]
[1728855198309,0.1905,63053.0,63042.0,0.3628]
[1728855198609,0.079317,63047.0,63042.0,0.3628]
[1728855198806,0.239316,63049.0,63042.0,0.440122]
[1728855199010,0.079317,63047.0,63042.0,0.3608]
[1728855199308,0.16,63049.0,63042.0,0.3608]
[1728855199710,0.16,63049.0,63043.0,0.079321]
[1728855199905,0.239316,63049.0,63043.0,0.079321]
[1728855200105,0.16,63049.0,63042.0,0.3608]
[1728855200308,0.239315,63049.0,63042.0,0.3608]
[1728855200515,0.079316,63048.0,63042.0,0.3608]
[1728855201305,0.03176206,63047.0,63042.0,0.3608]
[1728855201504,0.03176206,63046.0,63042.0,0.3608]
[1728855201704,0.03176206,63045.0,63042.0,0.3608]
[1728855201899,0.03176206,63044.0,63042.0,0.3608]
[1728855202113,0.03176206,63043.0,63042.0,0.3608]
[1728855202514,0.03176206,63047.0,63042.0,0.3608]
[1728855202808,0.03176206,63047.0,63042.0,0.39001112]
[1728855203202,0.07061945,63046.0,63042.0,0.39001112]
[1728855203403,0.03176744,63045.0,63042.0,0.39001112]
[1728855203616,0.03176744,63044.0,63043.0,0.079322]
[1728855203810,0.12692391,63052.0,63043.0,1.07584]
[1728855204009,0.079304,63058.0,63052.0,0.440111]
[1728855204313,0.16,63055.0,63054.0,0.3645]
[1728855204701,0.19226434,63055.0,63054.0,0.3645]
[1728855205213,0.0323,63057.0,63054.0,0.3645]
[1728855205407,0.0323,63057.0,63054.0,0.443808]
[1728855206100,0.0323,63057.0,63054.0,0.3645]
[1728855206305,0.0323,63057.0,63056.0,0.079306]
[1728855206512,0.06453423,63057.0,63056.0,0.079306]
[1728855207711,0.06446663,63057.0,63056.0,0.080306]
[1728855208418,0.06446663,63057.0,63056.0,0.081306]
[1728855209409,0.0323,63057.0,63056.0,0.081306]
[1728855210717,0.0323,63057.0,63056.0,0.086306]
[1728855211420,0.0323,63057.0,63056.0,0.091306]
[1728855211621,0.0323,63057.0,63056.0,0.251306]
[1728855211821,0.0323,63057.0,63056.0,0.245306]
[1728855212122,0.0323,63057.0,63056.0,0.254306]
[1728855212620,0.0323,63057.0,63056.0,0.251306]
[1728855212921,0.0323,63057.0,63056.0,0.245306]
[1728855213225,0.0323,63057.0,63056.0,0.251306]
[1728855213814,0.0323,63057.0,63056.0,0.245306]
[1728855214123,0.0323,63057.0,63056.0,0.256306]
[1728855214626,0.0323,63057.0,63056.0,0.239306]
[1728855214820,0.0323,63057.0,63056.0,0.253306]
[1728855215126,0.0323,63057.0,63056.0,0.614106]
[1728855215824,0.0323,63057.0,63056.0,0.607106]
[1728855216123,0.0323,63057.0,63056.0,0.614106]
[1728855216520,0.06460497,63057.0,63056.0,0.614106]
[1728855216725,0.10344842,63057.0,63056.0,0.5348]
[1728855217117,0.06460497,63057.0,63056.0,0.5278]
[1728855217323,0.0323,63057.0,63056.0,0.5358]
[1728855217629,0.06460497,63057.0,63056.0,0.5358]
[1728855218326,0.06460497,63057.0,63056.0,0.5288]
[1728855218523,0.06460497,63057.0,63056.0,0.5378]
[1728855219030,0.06460497,63057.0,63056.0,0.5358]
[1728855219224,0.0323,63057.0,63056.0,0.5358]
[1728855219527,0.0323,63057.0,63056.0,0.5348]
[1728855219828,0.10344898,63057.0,63056.0,0.5348]
[1728855220225,0.10344898,63057.0,63056.0,0.5278]
[1728855220529,0.1744265,63057.0,63056.0,0.615106]
[1728855220736,0.25564977,63057.0,63056.0,0.615106]
[1728855221027,0.17465657,63057.0,63056.0,0.5358]
[1728855221218,0.17465657,63057.0,63056.0,0.5338]
[1728855221414,0.23000146,63057.0,63056.0,0.612106]
[1728855221828,0.08098814,63057.0,63056.0,0.612106]
[1728855222016,0.15213712,63057.0,63056.0,0.613106]
[1728855222526,0.29449369,63057.0,63056.0,0.613106]
[1728855222729,0.29449369,63057.0,63056.0,0.600106]
[1728855222930,0.15213712,63057.0,63056.0,0.616106]
[1728855223131,0.29449369,63057.0,63056.0,0.616106]
[1728855223526,0.07114898,63057.0,63056.0,0.609106]
[1728855223727,0.07114898,63057.0,63056.0,0.616106]
[1728855223923,0.17470903,63061.0,63056.0,0.616106]
[1728855224121,0.11983696,63060.0,63059.0,0.16]
[1728855224427,0.07114851,63060.0,63059.0,0.16]
[1728855224626,0.08048798,63062.0,63059.0,0.16]
[1728855225330,0.0793,63061.0,63059.0,0.16]
[1728855225730,0.0793,63061.0,63059.0,0.163]
[1728855226134,0.079301,63060.0,63059.0,0.003]
[1728855226332,0.44128798,63062.0,63059.0,0.005]
[1728855226522,0.079301,63060.0,63059.0,0.01]
[1728855227430,0.555061,63060.0,63059.0,0.008]
[1728855227824,0.079301,63060.0,63059.0,0.005]
[1728855228133,0.555061,63060.0,63059.0,0.002]
[1728855228333,0.555061,63060.0,63052.0,0.4708]
[1728855228334,0.47576,63060.0,63052.0,0.4708]
[1728855228530,0.079304,63058.0,63052.0,0.4708]
[1728855228725,0.112105,63057.0,63052.0,0.4708]
[1728855229636,0.112105,63057.0,63052.0,0.4748]
[1728855229832,0.3608,63056.0,63052.0,0.004]
[1728855230034,0.440107,63056.0,63052.0,0.004]
[1728855230630,0.440107,63056.0,63052.0,0.008]
[1728855231027,0.079307,63056.0,63052.0,0.008]
[1728855231229,0.0328,63057.0,63052.0,0.008]
[1728855231535,0.3608,63055.0,63052.0,0.004]
[1728855231833,0.3608,63055.0,63044.0,0.0111]
[1728855231834,0.079315,63049.0,63044.0,0.0111]
[1728855232031,0.079321,63044.0,63043.0,0.00237882]
[1728855232428,0.16686471,63044.0,63043.0,0.00237882]
[1728855232627,0.198878,63044.0,63043.0,0.00237882]
[1728855233426,0.34153905,63044.0,63043.0,0.00237882]
[1728855233730,0.19888624,63044.0,63043.0,0.00237882]
[1728855233934,0.079327,63040.0,63032.0,0.11909473]
[1728855234133,0.14265959,63036.0,63030.0,0.16]
[1728855234333,0.14996953,63035.0,63029.0,0.079339]
[1728855234526,0.07086235,63034.0,63029.0,0.079339]
[1728855234726,0.12675319,63034.0,63029.0,0.079339]
[1728855235037,0.19761554,63034.0,63029.0,0.079339]
[1728855235234,0.07086235,63034.0,63029.0,0.079339]
[1728855235436,1.14678235,63034.0,63033.0,0.3249]
[1728855235624,1.14678235,63034.0,63024.0,0.3608]
[1728855235625,1.50758235,63034.0,63023.0,0.0111]
[1728855235825,1.50758235,63034.0,63022.0,0.00237962]
[1728855235826,0.28668235,63029.0,63022.0,0.00237962]
[1728855236030,0.07086235,63028.0,63022.0,0.00237962]
[1728855236229,0.07086235,63027.0,63022.0,0.00237962]
[1728855236431,0.03201329,63026.0,63022.0,0.00237962]
[1728855236630,0.03201329,63025.0,63022.0,0.00237962]
[1728855236936,0.31888235,63025.0,63022.0,0.01437962]
[1728855237145,0.079348,63023.0,63022.0,0.01437962]
[1728855237342,0.20603035,63023.0,63022.0,0.01437962]
[1728855237528,0.15022591,63023.0,63022.0,0.01437962]
[1728855238236,1.14691791,63023.0,63011.0,0.3719]
[1728855238440,0.12639362,63015.0,63011.0,0.3608]
[1728855238744,0.16,63016.0,63011.0,0.3608]
[1728855238940,0.16,63016.0,63006.0,0.079368]
[1728855238941,0.3608,63012.0,63006.0,0.079368]
[1728855239134,0.0322,63011.0,63006.0,0.079368]
[1728855239445,0.16,63008.0,63003.0,0.079372]
[1728855240140,0.16,63008.0,62999.0,0.440178]
[1728855240338,0.3608,63003.0,62999.0,0.079378]
[1728855240545,0.0322,63011.0,63002.0,0.16]
[1728855240738,0.0322,63011.0,63006.0,0.16]
[1728855241040,0.001,63008.0,63006.0,0.16]
[1728855241434,0.001,63008.0,63006.0,0.169]
[1728855241742,0.16,63024.0,63010.0,0.079364]
[1728855241944,0.0326,63028.0,63024.0,0.079346]
[1728855242148,0.16238061,63029.0,63022.0,0.5208]
[1728855242149,0.00238061,63029.0,63022.0,0.5208]
[1728855242441,0.00238061,63029.0,63028.0,0.440141]
[1728855243343,0.00238061,63029.0,63028.0,0.43961796]
[1728855244253,0.01638061,63029.0,63028.0,0.44061796]
[1728855245641,0.01738061,63029.0,63028.0,0.44761796]
[1728855246543,0.00338061,63029.0,63028.0,0.44661796]
[1728855246743,0.00438061,63029.0,63028.0,0.45561796]
[1728855247240,0.00438061,63029.0,63028.0,0.45361796]
[1728855247739,0.00338061,63029.0,63028.0,0.44861796]
[1728855248043,0.08372061,63029.0,63028.0,0.37627696]
[1728855248438,0.08372061,63029.0,63028.0,0.37427696]
[1728855250144,0.08272061,63029.0,63028.0,0.37027696]
[1728855250535,0.08172061,63029.0,63028.0,0.36927696]
[1728855250946,0.08172061,63029.0,63028.0,0.36827696]
[1728855251740,0.08172061,63029.0,63028.0,0.36627696]
[1728855252443,0.00238061,63029.0,63028.0,0.36627696]
[1728855252639,0.00238061,63029.0,63028.0,0.44561796]
[1728855253544,0.079335,63033.0,63030.0,0.079339]
[1728855253942,0.079336,63032.0,63030.0,0.079339]
[1728855254743,0.079336,63032.0,63030.0,0.083339]
[1728855254942,0.16,63038.0,63030.0,0.004]
[1728855255144,0.079334,63034.0,63030.0,0.083339]
[1728855255744,0.440128,63039.0,63030.0,0.004]
[1728855255944,0.3608,63039.0,63034.0,0.079334]
[1728855256147,0.16,63041.0,63034.0,0.440134]
[1728855256948,0.07933,63037.0,63034.0,0.440134]
[1728855257143,0.239325,63041.0,63034.0,0.440134]
[1728855257352,0.07933,63038.0,63034.0,0.3608]
[1728855258148,0.004,63037.0,63034.0,0.3608]
[1728855258543,0.002,63037.0,63034.0,0.3608]
[1728855259149,0.002,63037.0,63034.0,0.440134]
[1728855259749,0.004,63038.0,63034.0,0.440134]
[1728855260052,0.002,63038.0,63034.0,0.440134]
[1728855260238,0.002,63037.0,63034.0,0.440134]
[1728855260439,0.002,63037.0,63034.0,0.3608]
[1728855260651,0.004,63037.0,63035.0,0.079332]
[1728855260849,0.004,63037.0,63036.0,0.079331]
[1728855261351,0.002,63037.0,63036.0,0.079331]